Cogmind - Beta 11.1 @@@ ROGUE MODE // 2022.05.09 @ 22:24:02 Player: Decinym Result: Smashed by cave-in Performance ------------- Evolutions (0) 0 Regions Visited (3) 600 Robots Destroyed (0) 0 Value Destroyed (0) 0 Prototype IDs (23) 460 Alien Tech Used (0) 0 Bonus (297) 297 TOTAL SCORE: 1357 Bonus ------- Aligned with FarCom 300 Friendly Fire -3 Cogmind --------- Core Integrity 0/250 Matter 256/300 Energy 100/100 System Corruption 1% Temperature Cool (0) Movement Walking (330) Ox3 Location -10/Exiles Parts ------- > --- POWER (1) -------- (None) > --- PROPULSION (2) --- Aluminum Leg > --- UTILITY (2) ------ Large Storage Unit Light Armor Plating > --- WEAPON (2) ------- AWS/Gauss > --- INVENTORY (15) --- Light Ion Engine Light Treads Light Treads Light Treads Structural Scanner AWS/Thermal Assault Rifle Peak State ------------ > --- POWER ------------ Light Ion Engine > --- PROPULSION ------- Aluminum Leg Aluminum Leg > --- UTILITY ---------- Large Storage Unit Structural Scanner > --- WEAPON ----------- AWS/Gauss > --- INVENTORY -------- Light Ion Engine Light Treads Light Treads Light Treads Light Armor Plating AWS/Thermal Assault Rifle [Rating: 23] Favorites ----------- Power Light Ion Engine Engine Light Ion Engine Propulsion Aluminum Leg Leg Aluminum Leg Utility Structural Scanner Device Structural Scanner Storage Large Storage Unit Protection Light Armor Plating Weapon Beam Cannon Energy Gun Medium Laser Energy Cannon Beam Cannon Ballistic Gun AWS/Gauss Build | -11 -10 -10 -10 ------- Run | Scr Mat Min Exi Slots Evolved . | . . . . Power . | . . . . Propulsion . | . . . . Utility . | . . . . Weapon . | . . . . Parts Attached 6 | . 3 . 3 Power . | . . . . Engine . | . . . . Core . | . . . . Reactor . | . . . . Propulsion . | . . . . Treads . | . . . . Leg . | . . . . Wheel . | . . . . Hover . | . . . . Flight . | . . . . Utility 3 | . 2 . 1 Device 1 | . 1 . . Storage 1 | . 1 . . Processor . | . . . . Hackware . | . . . . Protection 1 | . . . 1 Artifact . | . . . . Weapon 3 | . 1 . 2 Energy Gun . | . . . . Energy Cannon 2 | . 1 . 1 Ballistic Gun 1 | . . . 1 Ballistic Cannon . | . . . . Launcher . | . . . . Special Weapon . | . . . . Impact Weapon . | . . . . Slashing Weapon . | . . . . Piercing Weapon . | . . . . Special Melee Weapon . | . . . . Unidentified Prototypes . | . . . . Parts Lost 2 | . . . 2 Power 1 | . . . 1 Propulsion 1 | . . . 1 Utility . | . . . . Weapon . | . . . . Highest Loss Streak 2 | . . . 2 To Critical Strikes . | . . . . Average Slot Usage (%) 95 | . 98 100 89 Engine 13 | . 14 14 13 Leg 28 | . 28 28 28 Device 13 | . 12 14 13 Storage 14 | . 14 14 14 Energy Gun 11 | . 22 14 4 Energy Cannon 12 | . 5 14 13 Naked Turns . | . . . . Heaviest Build 34 | 11 29 29 34 Greatest Support 20 | 20 20 20 20 Greatest Overweight (x) 1 | . 1 1 1 Average Overweight (x) . | . . 1 1 Largest Inventory Capacity 15 | . 15 15 15 Average Capacity 14 | . 13 15 15 Most Carried 15 | . 10 15 15 Average Carried 11 | . 8 11 13 Final Capacity 15 | 8 15 15 15 Final Carried 15 | 6 10 15 8 Class Distribution -------------------- 100% | Mutant Dominant Class ---------------- Mutant | -10/Materials Mutant | -10/Mines Mutant | -10/Exiles Resources | -11 -10 -10 -10 ----------- Run | Scr Mat Min Exi Matter Collected 206 | 192 . 14 . Remotely . | . . . . Salvage Created 20 | . . . 20 Parts . | . . . . Haulers Intercepted . | . . . . Recyclers Shooed . | . . . . Parts Field Recycled . | . . . . Retrieved Matter . | . . . . Parts Self-Destructed . | . . . . Prevented . | . . . . Kills | -11 -10 -10 -10 ------- Run | Scr Mat Min Exi Combat Hostiles Destroyed 1 | . . . 1 Guns 1 | . . . 1 Classes Destroyed 1 | . . . 1 Assembled 1 | . . . 1 Best Kill Streak 1 | . . . 1 Combat Bots Only 1 | . . . 1 Max Kills in Single Turn 1 | . . . 1 Gunslinging . | . . . . Exploded . | . . . . Melee . | . . . . Uniques/NPCs Destroyed . | . . . . Combat | -11 -10 -10 -10 -------- Run | Scr Mat Min Exi Damage Taken 749 | . . . 749 Core 281 | . . . 281 Absorbed by Shields . | . . . . Core Remaining (%) 100 | 100 . . . Volleys Fired 1 | . . . 1 Largest 1 | . . . 1 Hottest 60 | . . . 60 Shots Fired 18 | . . . 18 Gun 17 | . . . 17 Cannon 1 | . . . 1 Launcher . | . . . . Special . | . . . . Kinetic 17 | . . . 17 Thermal 1 | . . . 1 Explosive . | . . . . Electromagnetic . | . . . . Robot Hit Streak 18 | . . . 18 Robot Miss Streak . | . . . . Penetration Max . | . . . . Secondary Targets . | . . . . Autonomous 17 | . . . 17 Shots Hit Robots 18 | . . . 18 Core Hits 3 | . . . 3 Critical Kills . | . . . . Critical Parts Destroyed . | . . . . Critical Strikes 1 | . . . 1 Destroy 1 | . . . 1 Melee Attacks . | . . . . Impact . | . . . . Slashing . | . . . . Piercing . | . . . . Sneak Attacks . | . . . . Combat Hostiles . | . . . . Follow-up Attacks . | . . . . Damage Inflicted 471 | . . . 471 Guns 470 | . . . 470 Cannons 1 | . . . 1 Explosions . | . . . . Melee . | . . . . Ramming . | . . . . Kinetic 470 | . . . 470 Thermal 1 | . . . 1 Explosive . | . . . . Electromagnetic . | . . . . Impact . | . . . . Slashing . | . . . . Piercing . | . . . . Highest Corruption . | . . . . Average Corruption . | . . . . Corruption Purged . | . . . . Corruption Blocked . | . . . . Overload Shots . | . . . . Overflow Damage . | . . . . Projectiles . | . . . . Explosions . | . . . . Melee . | . . . . Knockbacks . | . . . . Impact . | . . . . Kinetic . | . . . . Secondary . | . . . . Self-Inflicted Damage . | . . . . Shots . | . . . . Rammed . | . . . . Targets Rammed . | . . . . Kicked . | . . . . Crushed . | . . . . Highest Temperature 20 | . . . 20 Average Temperature 15 | . . . 15 Received Heat Transfer . | . . . . Siege Activations . | . . . . Robots Corrupted . | . . . . Combat Hostiles . | . . . . Parts Fried . | . . . . Impact Corruptions . | . . . . Robots Melted . | . . . . Combat Hostiles . | . . . . Parts Melted . | . . . . Heat Transferred 9 | . . . 9 Parts Sabotaged . | . . . . Parts Stolen . | . . . . Parts Stripped . | . . . . Power Chain Reactions . | . . . . Missiles Intercepted . | . . . . Alert | -11 -10 -10 -10 ------- Run | Scr Mat Min Exi Peak Influence . | . . . . Initial . | . . . . Average . | . . . . Maximum Alert Level . | . . . . Low Security (%) 100 | . 100 100 . Level 1 . | . . . . Level 2 . | . . . . Level 3 . | . . . . Level 4 . | . . . . Level 5 . | . . . . High Security . | . . . . Max Security . | . . . . Squads Dispatched . | . . . . Investigation . | . . . . Extermination . | . . . . Reinforcement . | . . . . Assault . | . . . . Garrison . | . . . . Intercept . | . . . . Searches Triggered . | . . . . Construction Impeded . | . . . . Haulers Reinforced . | . . . . Active Scanning Responses . | . . . . Cargo Convoy Interrupts . | . . . . Stealth | -11 -10 -10 -10 --------- Run | Scr Mat Min Exi Distress Signals . | . . . . Communications Jammed . | . . . . Distress Signals . | . . . . Times Spotted 7 | . 2 . 5 Peak Tracking Total 9 | . 2 . 9 Tactical Retreats . | . . . . Traps | -11 -10 -10 -10 ------- Run | Scr Mat Min Exi Traps Triggered . | . . . . Indirectly . | . . . . Trap Hack Attempts . | . . . . Triggered . | . . . . Disarmed . | . . . . Reprogrammed . | . . . . Reused 1 | . . . 1 Traps Extracted . | . . . . Installed 5 | . . . 5 Triggered . | . . . . Most Traps Carried 5 | . . 5 5 Machines | -11 -10 -10 -10 ---------- Run | Scr Mat Min Exi Machines Disabled . | . . . . Max in Single Turn . | . . . . Machines Sabotaged . | . . . . Garrisons Compromised . | . . . . Overloaded Fab Kills . | . . . . Hacking | -11 -10 -10 -10 --------- Run | Scr Mat Min Exi Machines Accessed 2 | . . . 2 Terminals . | . . . . Fabricators . | . . . . Repair Stations . | . . . . Recycling Units . | . . . . Scanalyzers . | . . . . Garrison Access . | . . . . Total Hacks 2 | . . . 2 Successful 2 | . . . 2 Failed . | . . . . Catastrophic . | . . . . Database Lockouts . | . . . . Manual 1 | . . . 1 Terminals . | . . . . Fabricators . | . . . . Repair Stations . | . . . . Recycling Units . | . . . . Scanalyzers . | . . . . Garrison Access . | . . . . Terminal Hacks 2 | . . . 2 Record 1 | . . . 1 EX-Prototype ID Bank 1 | . . . 1 Fabricator Hacks . | . . . . Repair Station Hacks . | . . . . Recycling Unit Hacks . | . . . . Scanalyzer . | . . . . Garrison Access Hacks . | . . . . Unauthorized Hacks . | . . . . Terminals . | . . . . Fabricators . | . . . . Repair Stations . | . . . . Recycling Units . | . . . . Scanalyzers . | . . . . Garrison Access . | . . . . Data Cores Recovered . | . . . . Used . | . . . . Hacking Detections . | . . . . Full Trace Events . | . . . . Feedback Events . | . . . . Feedback Blocked . | . . . . Robot Schematics Acquired . | . . . . Robots Built . | . . . . Authchips . | . . . . Time . | . . . . Total Robot Build Rating . | . . . . Part Schematics Acquired . | . . . . Parts Built . | . . . . Authchips . | . . . . Time . | . . . . Total Part Build Rating . | . . . . Parts Repaired . | . . . . Time . | . . . . Parts Recycled . | . . . . Recycled Matter . | . . . . Retrieved Matter . | . . . . Retrieved Components . | . . . . Parts Scanalyzed . | . . . . Part Schematics Acquired . | . . . . Parts Damaged . | . . . . Bothacking | -11 -10 -10 -10 ------------ Run | Scr Mat Min Exi Used RIF Installer . | . . . . Robots Hacked . | . . . . Non-combat . | . . . . Combat . | . . . . Robot Hacks Applied . | . . . . Relay Couplers Released . | . . . . Fabnet Peak Effective % . | . . . . Robots Rewired . | . . . . Allies Hacked . | . . . . Hacks Repelled . | . . . . Allies | -11 -10 -10 -10 -------- Run | Scr Mat Min Exi Total Allies 1 | . . 1 . Largest Group 1 | . . 1 . Highest-Rated Group 31 | . . 31 . Highest-Rated Ally 31 | . . 31 . Total Orders . | . . . . Ally Attacks . | . . . . Total Damage . | . . . . Kills . | . . . . Allies Corrupted . | . . . . Allies Melted . | . . . . Intel | -11 -10 -10 -10 ------- Run | Scr Mat Min Exi Robot Analysis Total . | . . . . Derelict Logs Recovered 2 | . . 2 . Drone Launches . | . . . . Drone Recoveries . | . . . . Exploration | -11 -10 -10 -10 ------------- Run | Scr Mat Min Exi Turns Passed 1572 | . 263 676 633 Spaces Moved 822 | 1 152 354 315 Core . | . . . . Treads . | . . . . Legs 822 | 1 152 354 315 Wheels . | . . . . Hover . | . . . . Flight . | . . . . Fastest Speed 120 | 120 120 190 190 Average Speed 185 | 120 168 190 190 Slowest Speed 190 | 120 190 190 190 Overloaded Moves . | . . . . Propulsion Burnouts . | . . . . Robots Hopped . | . . . . Cave-ins Triggered 1 | . . . 1 Exploration Rate (%) 45 | 1 33 89 60 Regions Visited 3 Branch Regions 2 Pre-discovered Areas 2 | . . 1 1 Known Exits Taken . | . . . . Unknown Exits Taken 3 | 1 1 1 . Scrap Searched 1 | . . 1 . Spaces Dug . | . . . . Terrain Destroyed 12 | . . . 12 Melee . | . . . . Projectile 12 | . . . 12 AOE . | . . . . Terrain Rammed . | . . . . Walls Destroyed . | . . . . Machines Disabled . | . . . . Actions | -11 -10 -10 -10 --------- Run | Scr Mat Min Exi Total 870 | . 158 358 354 Wait 16 | . . . 16 Move 819 | . 151 353 315 Hop . | . . . . Pick Up 10 | . 3 5 2 Fast Attach 3 | . 2 . 1 Attach 1 | . . . 1 Detach . | . . . . Swap 2 | . 1 . 1 Drop 13 | . 1 . 12 Fire 1 | . . . 1 Melee . | . . . . Ram . | . . . . Kick . | . . . . Crush . | . . . . Escape Stasis . | . . . . Rewire . | . . . . Trap 5 | . . . 5 Miscellaneous . | . . . . Route ------- -11/Scrapyard -10/Materials -10/Mines (discovered 3 exits: [*Mat x2] / *Exi) -10/Exiles (discovered 1 exit: [*Min]) History --------- Turn | Location | Event 1 | -11/Scrapyard | Discovered new exit (range 0) 1 | -11/Scrapyard | Entered Materials 165 | -10/Materials | Discovered new exit (range 13) 264 | -10/Materials | Entered Mines 269 | -10/Mines | Met a Derelict bent on vengeance 306 | -10/Mines | Build established: Mutant 358 | -10/Mines | Discovered new exit (range 12) 362 | -10/Mines | Received a Mining Laser from a helpful Derelict 709 | -10/Mines | Found a hidden stash of uninstalled traps 746 | -10/Mines | Learned location of 1 exit from Materials 887 | -10/Mines | Discovered new exit (range 8) 933 | -10/Mines | Deemed a non-threat by the Exiles lab entrance 933 | -10/Mines | Discovered new exit (range 5) 940 | -10/Mines | Entered Exiles 965 | -10/Exiles | Discovered new exit (range 15) 988 | -10/Exiles | Met 8R-AWN 1015 | -10/Exiles | Met EX-HEX 1070 | -10/Exiles | Met EX-BIN 1092 | -10/Exiles | Aligned with FarCom system 1094 | -10/Exiles | Given EX-Vault access code 1138 | -10/Exiles | Opened EX-Vault 1155 | -10/Exiles | Found AWS/Gauss 1164 | -10/Exiles | Found AWS/Thermal 1205 | -10/Exiles | Warned to stay clear of 0b10 Research branches 1380 | -10/Exiles | Met EX-DEC 1452 | -10/Exiles | Learned location of Zion (-6) 1552 | -10/Exiles | Attacked by the Exiles 1570 | -10/Exiles | Core integrity fell below 50% 1574 | -10/Exiles | Crushed by falling debris 1574 | -10/Exiles | Smashed by cave-in Last Messages --------------- 01568_ HV Slug penetrates Wall. 01569_ Destroyed Prototype Protection. 01570_ Penetrated by HV Slug. 01570_ HV Slug penetrates Wall. 01570_ Penetrated by HV Slug. 01570_ HV Slug penetrates Wall. 01572_ Slug penetrates 8R-AWN. 01572_ as-55736 destroyed. 01573_ Penetrated by HV Slug. 01573_ HV Slug penetrates Wall. 01573_ Penetrated by HV Slug. 01573_ Critical hit (Destroy). 01573_ HV Slug penetrates Wall. 01573_ as-12048 IFF system glitched. 01573_ Slug penetrates 8R-AWN. 01573_ Slug penetrates Earth. 01574_ The unstable cave ceiling collapses. 01574_ Crushed by falling debris. 01574_ Aluminum Leg destroyed. 01574_ System corrupted by crushing effect (+1). Map ----- +----------------------------------------------------+ | """"""##?????????????????????????????????????????? | | """"""##?????????????????????????????????????????? | | " """"##?????????????????????????????????????????? | | """"##?????????????????????????????????????????? | | """##?????????????????????????????????????????? | | """##?????????????????????????????????????????? | | """##?????????????????????????????????????????? | | """##?????????????????????????????????????????? | | """##?????????????????????????????????????????? | | """""?????????????????????????????????????????? | | """##?????????????????????????????????????????? | | X" """""?????????????????????????????????????????? | | "" # ?????????????????????????????????????????? | | """"""# ?????????????????????????????????????????? | | ####### ?????????????????????????????????????????? | | ########?????????????????????????????????????????? | | ?????????????????????????????????????????????????? | | ?#############??????????????????????????????????? | | ###############?????????????????????????????????? | | ###"""""""""####???????????????????????????????## | | " """ """"###?????????????????????????????#### | | "" " ##?????????????????????????????### | | " """##?????????#######?????????????## | | " "###?###################???????### | | " "############# ########?????#### | | ""### @g] ; ??### | | """#########aaa ########???#### | | "######## ############## | | ###### ########## | | " ##### #""""## # | | "" ### * # | | ## * | | " #### | | ""###"""""#### | | #"""################ * | | ######################### | | ########????????????######## | | " ####?????????????????????###### | | """ ^^^^ ""###????????????????????????##### | | " " ""#" "###???????????????????????????### | | """ """##"""""""####????????????????????????????## | | ##""""#############?????????????????????????????## | | ##################???????????????????????????????? | | ########?????????????????????????????????????????? | | ?????????????????????????????????????????????????? | | ?????????????????????????????????????????????????? | | ?????????????????????????????????????????????????? | | ?????????????????????????????????????????????????? | | ?????????????????????????????????????????????????? | | ?????????????????????????????????????????????????? | +----------------------------------------------------+ Best States ------------- Heat Dissipation 25 Energy Generation 10 Energy Capacity 125 Matter Stores 292 Matter Capacity 300 Sight Range 16 Terrain Scan Density 10 Armor Coverage 150 Evasion (%) 55 Item Schematics ----------------- None Robot Schematics ------------------ None Fabricated ------------ Nothing Alien Tech Used ----------------- None Achievements -------------- None Challenges ------------ None Game ------ Seed BiocellExperimentalHumpback Manual? 0 Play Time 00:05:25 Cumulative 336.9 hours Start 2022.05.09 @ 22:20:31 End 2022.05.09 @ 22:24:02 Sessions 1 Manual Loads 0 Difficulty Rogue Special Mode None Game No. 371 Rogue 371 Adventurer 0 Explorer 0 Win Type - Total 28 Types 17/3/2/1/2/0/3/0/0 Lore% 88 Gallery% 85 Achievement% 80 Wizard Run 0 Options --------- ASCII 0 Keyboard 0 Movement Arrows Keybinds 0 Fullscreen 2 Font 18/SmallcapsGlow Map View 76x50 Tactical HUD 1 Map Filters NONE Filters NONE Steam 1 RUN: 78265508-6d55-4f3b-93c4-2c0c26f04337